fUSD/lending_fUSD_20240825
["ID","MTS","AMOUNT","RATE_DAILY","PERIOD"]
[335872983,1724563845654,-500.0,0.00010999,2]
[335872984,1724563845663,-500.0,0.00010999,2]
[335872985,1724563845790,-500.0,0.00010999,2]
[335872986,1724563845800,-500.0,0.00010999,2]
[335872987,1724563845809,-500.0,0.00010999,2]
[335872988,1724563845819,-500.0,0.00010999,2]
[335872989,1724563845828,-500.0,0.00010999,2]
[335872990,1724563845837,-500.0,0.00010999,2]
[335872991,1724563845846,-500.0,0.00010999,2]
[335872992,1724563845856,-500.0,0.00010999,2]
[335872993,1724563845865,-500.0,0.00010999,2]
[335872994,1724563845874,-500.0,0.00010999,2]
[335872995,1724563845883,-500.0,0.00010999,2]
[335872996,1724563845893,-500.0,0.00010999,2]
[335872997,1724563845902,-500.0,0.00010999,2]
[335872998,1724563845911,-500.0,0.00010999,2]
[335872999,1724563845920,-312.78991631,0.00010999,2]
[335873000,1724563845930,-500.0,0.00010999,2]
[335873001,1724563845940,-500.0,0.00010999,2]
[335873002,1724563845950,-500.0,0.00010999,2]
[335873003,1724563845963,-500.0,0.00010999,2]
[335873004,1724563845973,-500.0,0.00010999,2]
[335873005,1724563845982,-500.0,0.00010999,2]
[335873006,1724563845990,-500.0,0.00010999,2]
[335873007,1724563845999,-500.0,0.00010999,2]
[335873008,1724563846008,-500.0,0.00010999,2]
[335873009,1724563846018,-500.0,0.00010999,2]
[335873010,1724563846029,-500.0,0.00010999,2]
[335873011,1724563846038,-500.0,0.00010999,2]
[335873012,1724563846047,-500.0,0.00010999,2]
[335873013,1724563846057,-500.0,0.00010999,2]
[335873014,1724563846067,-500.0,0.00010999,2]
[335873015,1724563846076,-500.0,0.00010999,2]
[335873016,1724563846086,-508.00212856,0.00010999,2]
[335873017,1724563846097,-500.0,0.00010999,2]
[335873018,1724563846107,-500.0,0.00010999,2]
[335873019,1724563846117,-500.0,0.00010999,2]
[335873021,1724563846129,-500.0,0.00010999,2]
[335873023,1724563846140,-500.0,0.00010999,2]
[335873025,1724563846149,-500.0,0.00010999,2]
[335873027,1724563846159,-500.0,0.00010999,2]
[335873029,1724563846168,-500.0,0.00010999,2]
[335873030,1724563846178,-500.0,0.00010999,2]
[335873032,1724563846188,-503.54682432,0.00010999,2]
[335873034,1724563846198,-500.0,0.00010999,2]
[335873036,1724563846207,-500.0,0.00010999,2]
[335873037,1724563846216,-500.0,0.00010999,2]
[335873038,1724563846225,-500.0,0.00010999,2]
[335873039,1724563846235,-500.0,0.00010999,2]
[335873040,1724563846244,-500.0,0.00010999,2]
[335873041,1724563846254,-500.0,0.00010999,2]
[335873042,1724563846266,-500.0,0.00010999,2]
[335873043,1724563846279,-500.0,0.00010999,2]
[335873044,1724563846288,-500.0,0.00010999,2]
[335873045,1724563846297,-500.0,0.00010999,2]
[335873046,1724563846307,-500.0,0.00010999,2]
[335873047,1724563846317,-500.0,0.00010999,2]
[335873048,1724563846326,-500.0,0.00010999,2]
[335873049,1724563846335,-500.0,0.00010999,2]
[335873050,1724563846347,-500.0,0.00010999,2]
[335873051,1724563846357,-500.0,0.00010999,2]
[335873052,1724563846367,-500.0,0.00010999,2]
[335873053,1724563846377,-500.0,0.00010999,2]
[335873054,1724563846386,-500.0,0.00010999,2]
[335873055,1724563846396,-608.45053169,0.00010999,2]
[335873056,1724563846405,-976.51,0.00010999,2]
[335873057,1724563846414,-976.51,0.00010999,2]
[335873058,1724563846424,-976.51,0.00010999,2]
[335873059,1724563846434,-976.51,0.00010999,2]
[335873060,1724563846443,-976.51,0.00010999,2]
[335873061,1724563846453,-976.51,0.00010999,2]
[335873062,1724563846464,-976.51,0.00010999,2]
[335873063,1724563846473,-976.51,0.00010999,2]
[335873064,1724563846482,-976.51,0.00010999,2]
[335873065,1724563846492,-976.51,0.00010999,2]
[335873066,1724563846502,-976.51,0.00010999,2]
[335873067,1724563846511,-976.51,0.00010999,2]
[335873068,1724563846521,-976.51,0.00010999,2]
[335873069,1724563846531,-976.51,0.00010999,2]
[335873070,1724563846540,-976.51,0.00010999,2]
[335873071,1724563846549,-976.51,0.00010999,2]
[335873072,1724563846559,-976.51,0.00010999,2]
[335873073,1724563846568,-976.51,0.00010999,2]
[335873074,1724563846578,-976.51,0.00010999,2]
[335873075,1724563846587,-976.51,0.00010999,2]
[335873076,1724563846597,-976.51,0.00010999,2]
[335873077,1724563846606,-976.51,0.00010999,2]
[335873078,1724563846616,-976.51,0.00010999,2]
[335873079,1724563846625,-976.51213367,0.00010999,2]
[335873080,1724563846635,-26178.02925167,0.00010999,2]
[335873081,1724563846645,-300.0,0.00010999,2]
[335873082,1724563846654,-300.0,0.00010999,2]
[335873083,1724563846663,-300.0,0.00010999,2]
[335873084,1724563846673,-300.0,0.00010999,2]
[335873085,1724563846683,-300.0,0.00010999,2]
[335873086,1724563846692,-300.0,0.00010999,2]
[335873087,1724563846702,-230.08210766,0.00010999,2]
[335873088,1724563846711,-551.0,0.00011,2]
[335873089,1724563846720,-41852.35484902,0.00011,2]
[335873090,1724563846826,-155.0,0.00010861,2]
[335873091,1724563846835,-2890.72413897,0.00011,2]
[335873092,1724563846995,-178523.32059276,0.00011,2]
[335873093,1724563847006,-3518.04920049,0.00011,2]
[335873094,1724563847033,-3045.51889296,0.00011,2]
[335873095,1724563876783,500.0,8.22e-05,2]
[335873096,1724563877396,500.0,8.22e-05,2]
[335873097,1724563878950,500.0,9.59e-05,2]
[335873098,1724563896495,500.0,8.22e-05,2]
[335873099,1724563921042,500.0,8.22e-05,2]
[335873103,1724563922627,500.0,9.59e-05,2]
[335873119,1724564293409,331.74,8.219e-05,2]
[335873121,1724564360248,156.42,7.382e-05,2]
[335873129,1724564500336,952.91773752,8.948e-05,2]
[335873130,1724564653204,25782.49605144,0.00010009,2]
[335873131,1724564699395,5000.0,0.00027,120]
[335873138,1724564802932,324.53,8.219e-05,2]
[335873139,1724564885741,156.42,7.299e-05,2]
[335873140,1724564891207,4512.0,0.00027,120]
[335873151,1724564922604,277.54,9.999e-05,2]
[335873155,1724564968829,249.7163439,0.00010009,2]
[335873158,1724565002331,151.58016125,0.00010009,2]
[335873159,1724565010977,589.41835173,0.00010009,2]
[335873160,1724565020505,827.53805246,0.00010009,2]
[335873161,1724565023309,184.55869839,0.00010009,2]
[335873163,1724565031864,-790.08,0.00010025,2]
[335873164,1724565031874,-67.22470671,0.00010066,2]
[335873165,1724565031885,-112.84529329,0.00010066,2]
[335873166,1724565031896,-209.92,0.00010092,2]
[335873167,1724565031905,-324.53,0.00010477,2]
[335873168,1724565031915,-173.873026,0.00010573,2]
[335873169,1724565031924,-150.0,0.00010685,2]
[335873170,1724565031933,-155.0,0.00010799,2]
[335873171,1724565031942,-165.05154592,0.00010862,2]
[335873172,1724565031952,-277.42090325,0.00010899,2]
[335873173,1724565031961,-300.0,0.00010899,2]
[335873174,1724565031970,-300.0,0.00010899,2]
[335873175,1724565031979,-356.95,0.000109,2]
[335873176,1724565031988,-425.07,0.000109,2]
[335873177,1724565031998,-356.95,0.000109,2]
[335873178,1724565032007,-200.41,0.000109,2]
[335873179,1724565032016,-421.55,0.000109,2]
[335873180,1724565032027,-355.79055121,0.000109,2]
[335873181,1724565032057,-65.06944879,0.000109,2]
[335873182,1724565032068,-800.34404511,0.000109,2]
[335873183,1724565032081,-1444.60455856,0.000109,2]
[335873184,1724565032095,-556.26670477,0.000109,2]
[335873185,1724565032107,-353.30911184,0.000109,2]
[335873186,1724565032119,-415.98592689,0.000109,2]
[335873187,1724565040151,-155.0,0.00010713,2]
[335873188,1724565040162,-205.89445862,0.000109,2]
[335873189,1724565040172,-218.22,0.00010959,2]
[335873190,1724565040182,-250.0,0.00010959,2]
[335873191,1724565040193,-159.96,0.00010959,2]
[335873192,1724565040203,-500.0,0.0001096,2]
[335873193,1724565040212,-500.0,0.0001096,2]
[335873194,1724565040222,-500.0,0.0001096,2]
[335873195,1724565040230,-500.0,0.0001096,2]
[335873196,1724565040240,-500.0,0.00010989,2]
[335873197,1724565040250,-500.0,0.00010989,2]
[335873198,1724565040259,-500.0,0.00010989,2]
[335873199,1724565040270,-500.0,0.00010989,2]
[335873200,1724565040279,-500.0,0.00010989,2]
[335873201,1724565040289,-500.0,0.00010989,2]
[335873202,1724565040300,-500.0,0.00010989,2]
[335873203,1724565040309,-500.0,0.00010989,2]
[335873204,1724565040318,-500.0,0.00010989,2]
[335873205,1724565040327,-500.0,0.00010989,2]
[335873206,1724565040339,-500.0,0.00010989,2]
[335873207,1724565040350,-500.0,0.00010989,2]
[335873208,1724565040359,-107.56927252,0.00010989,2]
[335873209,1724565040373,-392.43072748,0.00010989,2]
[335873210,1724565040382,-500.0,0.00010989,2]
[335873211,1724565040392,-502.51984735,0.00010989,2]
[335873212,1724565040402,-500.0,0.00010989,2]
[335873213,1724565040411,-500.0,0.00010989,2]
[335873214,1724565040420,-501.51259169,0.00010989,2]
[335873215,1724565040430,-500.0,0.00010989,2]
[335873217,1724565040440,-500.0,0.00010989,2]
[335873219,1724565040449,-500.0,0.00010989,2]
[335873221,1724565040458,-500.0,0.00010989,2]
[335873222,1724565040467,-500.0,0.00010989,2]
[335873224,1724565040476,-500.0,0.00010989,2]
[335873226,1724565040485,-70.49792821,0.00010989,2]
[335873228,1724565040497,-429.50207179,0.00010989,2]
[335873230,1724565040506,-500.0,0.00010989,2]
[335873232,1724565040515,-500.0,0.00010989,2]
[335873234,1724565040525,-500.0,0.00010989,2]
[335873236,1724565040534,-500.0,0.00010989,2]
[335873237,1724565040544,-500.0,0.00010989,2]
[335873240,1724565040554,-500.0,0.00010989,2]
[335873242,1724565040566,-500.0,0.00010989,2]
[335873244,1724565040577,-500.0,0.00010989,2]
[335873246,1724565040587,-500.0,0.00010989,2]
[335873248,1724565040597,-500.0,0.00010989,2]
[335873250,1724565040607,-500.0,0.00010989,2]
[335873252,1724565040616,-500.0,0.00010989,2]
[335873254,1724565040626,-500.0,0.00010989,2]
[335873256,1724565040635,-522.97059868,0.00010989,2]
[335873258,1724565040645,-500.0,0.00010989,2]
[335873260,1724565040655,-500.0,0.00010989,2]
[335873262,1724565040664,-491.31119415,0.00010989,2]
[335873264,1724565040676,-8.68880585,0.00010989,2]
[335873266,1724565040686,-500.0,0.00010989,2]
[335873267,1724565040695,-500.0,0.00010989,2]
[335873268,1724565040705,-500.0,0.00010989,2]
[335873269,1724565040714,-500.0,0.00010989,2]
[335873270,1724565040723,-500.0,0.00010989,2]
[335873271,1724565040732,-500.0,0.00010989,2]
[335873272,1724565040742,-500.0,0.00010989,2]
[335873273,1724565040753,-500.0,0.00010989,2]
[335873274,1724565040762,-500.0,0.00010989,2]
[335873275,1724565040770,-500.0,0.00010989,2]
[335873276,1724565040780,-500.0,0.00010989,2]
[335873277,1724565040789,-500.0,0.00010989,2]
[335873278,1724565040798,-500.0,0.00010989,2]
[335873279,1724565040807,-500.0,0.00010989,2]
[335873280,1724565040816,-500.0,0.00010989,2]
[335873281,1724565040825,-500.0,0.00010989,2]
[335873282,1724565040838,-500.0,0.00010989,2]
[335873283,1724565040847,-500.0,0.00010989,2]
[335873284,1724565040861,-68.85985567,0.00010989,2]
[335873285,1724565040873,-431.14014433,0.00010989,2]
[335873286,1724565040882,-500.0,0.00010989,2]
[335873287,1724565040890,-500.0,0.00010989,2]
[335873288,1724565040899,-500.0,0.00010989,2]
[335873289,1724565040908,-500.0,0.00010989,2]
[335873290,1724565040917,-500.0,0.00010989,2]
[335873291,1724565040926,-500.0,0.00010989,2]
[335873292,1724565040935,-500.0,0.00010989,2]
[335873293,1724565040945,-500.0,0.00010989,2]
[335873294,1724565040954,-500.0,0.00010989,2]
[335873295,1724565040963,-500.0,0.00010989,2]
[335873296,1724565040973,-500.0,0.00010989,2]
[335873297,1724565040983,-500.0,0.00010989,2]
[335873298,1724565040992,-500.0,0.00010989,2]
[335873299,1724565041001,-500.0,0.00010989,2]
[335873300,1724565041011,-500.0,0.00010989,2]
[335873301,1724565041020,-500.0,0.00010989,2]
[335873302,1724565041028,-500.0,0.00010989,2]
[335873303,1724565041038,-12.70009056,0.00010989,2]
[335873355,1724565046125,-487.29990944,0.00010989,2]
[335873356,1724565046135,-74.67897415,0.00010989,2]
[335873359,1724565075358,500.0,8.22e-05,2]
[335873360,1724565110841,359.45835868,8.22e-05,2]
[335873361,1724565111794,500.0,8.22e-05,2]
[335873362,1724565116879,500.0,8.22e-05,2]
[335873363,1724565118463,500.0,9.59e-05,2]
[335873364,1724565283648,292.07,8.238e-05,2]
[335873365,1724565337176,70000.0,0.00025,60]
[335873366,1724565447555,-292.07,0.00010502,2]
[335873367,1724565447578,-1119.8272,0.0001089,2]
[335873368,1724565447599,-6949.2182,0.00010897,2]
[335873369,1724565447620,-924.31949146,0.00010899,2]
[335873370,1724565447642,-924.31949146,0.000109,2]
[335873371,1724565447664,-165.24561708,0.00010959,2]
[335873372,1724565548374,500.0,8.22e-05,2]
[335873373,1724565562649,500.0,8.22e-05,2]
[335873375,1724565820456,280.7,8.219e-05,2]
[335873377,1724565932318,150.18791,8.137e-05,2]
[335873378,1724565933803,3999.0,0.00027,120]
[335873379,1724565941510,150.0,8.137e-05,2]
[335873380,1724565950900,152.27895,8.137e-05,2]
[335873381,1724565965338,1588.76,0.00027,120]
[335873382,1724566065710,632.07,9.968e-05,2]
[335873387,1724566149096,628.39121281,0.00027,120]
[335873395,1724566196091,9255.39,9.959e-05,2]
[335873397,1724566232172,-749.83,0.00010052,2]
[335873398,1724566232181,-255.94,0.00010072,2]
[335873399,1724566232191,-21.53592453,0.00010087,2]
[335873400,1724566238207,-346.39407547,0.00010087,2]
[335873401,1724566238216,-86.40040364,0.000102,2]
[335873402,1724566240236,-759.48964096,0.000102,2]
[335873403,1724566240407,-2075.7880554,0.000102,2]
[335873404,1724566240416,-300.0,0.00010299,2]
[335873405,1724566240425,-58801.21194461,0.000103,2]
[335873406,1724566240577,-465218.13423841,0.000103,2]
[335873407,1724566240587,-428.17850784,0.00010377,2]
[335873408,1724566240597,-280.7,0.00010477,2]
[335873409,1724566240607,-853.66,0.000108,2]
[335873410,1724566240616,-6509.84,0.0001084,2]
[335873411,1724566240626,-3370568.15239945,0.0001085,2]
[335873458,1724566243283,-1522275.79760055,0.0001085,2]
[335873459,1724566243293,-155.0,0.0001089,2]
[335873460,1724566243302,-352.0792,0.00010896,2]
[335873461,1724566243312,-249.67881297,0.00010899,2]
[335873462,1724566243322,-249.67881293,0.00010899,2]
[335873463,1724566243333,-249.67881293,0.00010899,2]
[335873464,1724566243343,-249.67881293,0.00010899,2]
[335873465,1724566243359,-249.67881293,0.00010899,2]
[335873466,1724566243368,-249.67881293,0.00010899,2]
[335873467,1724566243378,-249.67881293,0.00010899,2]
[335873468,1724566243388,-249.67881293,0.00010899,2]
[335873469,1724566243398,-249.67881293,0.00010899,2]
[335873470,1724566243408,-692.2462555,0.000109,2]
[335873471,1724566243418,-150.0,0.000109,2]
[335873472,1724566243429,-249.67881293,0.000109,2]
[335873473,1724566243441,-500.0,0.00010958,2]
[335873474,1724566243450,-549.83728108,0.00010958,2]
[335873475,1724566243459,-3206.17,0.00010958,2]
[335873476,1724566243469,-3206.17,0.00010958,2]
[335873477,1724566243479,-3206.17,0.00010958,2]
[335873478,1724566243489,-3206.17,0.00010958,2]
[335873479,1724566243498,-3206.17,0.00010958,2]
[335873480,1724566243507,-3206.17,0.00010958,2]
[335873481,1724566243516,-3206.17,0.00010958,2]
[335873482,1724566243526,-3206.17,0.00010958,2]
[335873483,1724566243535,-3206.17,0.00010958,2]
[335873484,1724566243543,-3206.17,0.00010958,2]
[335873485,1724566243552,-3206.17,0.00010958,2]
[335873486,1724566243562,-3206.17,0.00010958,2]
[335873487,1724566243571,-3206.17,0.00010958,2]
[335873488,1724566243580,-699.38,0.00010958,2]
[335873489,1724566243589,-3206.17,0.00010958,2]
[335873490,1724566243599,-699.38,0.00010958,2]
[335873491,1724566243609,-3206.17,0.00010958,2]
[335873492,1724566243619,-699.38,0.00010958,2]
[335873493,1724566243629,-3206.17,0.00010958,2]
[335873494,1724566243638,-699.38,0.00010958,2]
[335873495,1724566243647,-3206.17,0.00010958,2]
[335873497,1724566243656,-699.38,0.00010958,2]
[335873499,1724566243665,-3206.17,0.00010958,2]
[335873500,1724566243675,-699.38,0.00010958,2]
[335873501,1724566243684,-3206.17,0.00010958,2]
[335873502,1724566243694,-699.38,0.00010958,2]
[335873503,1724566243703,-3206.17,0.00010958,2]
[335873504,1724566243713,-699.38,0.00010958,2]
[335873505,1724566243723,-3206.17,0.00010958,2]
[335873506,1724566243732,-699.38,0.00010958,2]
[335873507,1724566243742,-3206.17,0.00010958,2]
[335873508,1724566243751,-699.38,0.00010958,2]
[335873509,1724566243761,-3206.17,0.00010958,2]
[335873510,1724566243770,-699.38,0.00010958,2]
[335873511,1724566243779,-3206.35423173,0.00010958,2]
[335873512,1724566243789,-699.38,0.00010958,2]
[335873513,1724566243799,-699.38,0.00010958,2]
[335873514,1724566243809,-699.38,0.00010958,2]
[335873515,1724566243818,-699.38,0.00010958,2]
[335873516,1724566243828,-699.38,0.00010958,2]
[335873517,1724566243837,-699.38,0.00010958,2]
[335873518,1724566243848,-699.38,0.00010958,2]
[335873519,1724566243858,-699.38,0.00010958,2]
[335873520,1724566243867,-4125.66,0.00010958,2]
[335873521,1724566243877,-699.38,0.00010958,2]
[335873522,1724566243886,-4125.66,0.00010958,2]
[335873523,1724566243896,-699.38,0.00010958,2]
[335873524,1724566243906,-4125.66,0.00010958,2]
[335873525,1724566243915,-699.38,0.00010958,2]
[335873526,1724566243925,-4125.66,0.00010958,2]
[335873527,1724566243934,-699.38,0.00010958,2]
[335873528,1724566243944,-4125.66,0.00010958,2]
[335873529,1724566243953,-699.47755675,0.00010958,2]
[335873530,1724566243963,-4125.66,0.00010958,2]
[335873531,1724566243973,-4125.66,0.00010958,2]
[335873532,1724566243983,-4125.66,0.00010958,2]
[335873533,1724566243992,-4125.66,0.00010958,2]
[335873534,1724566244002,-4125.66,0.00010958,2]
[335873535,1724566244011,-4125.66,0.00010958,2]
[335873536,1724566244020,-4125.66,0.00010958,2]
[335873537,1724566244030,-4125.66,0.00010958,2]
[335873538,1724566244040,-4125.66,0.00010958,2]
[335873539,1724566244049,-4125.66,0.00010958,2]
[335873540,1724566244059,-4125.66,0.00010958,2]
[335873541,1724566244069,-4125.66,0.00010958,2]
[335873542,1724566244078,-4125.66,0.00010958,2]
[335873543,1724566244087,-4125.66,0.00010958,2]
[335873544,1724566244097,-4125.66,0.00010958,2]
[335873545,1724566244106,-4125.66,0.00010958,2]
[335873546,1724566244116,-721.59,0.00010958,2]
[335873547,1724566244126,-4125.66,0.00010958,2]
[335873548,1724566244136,-721.59,0.00010958,2]
[335873549,1724566244145,-4125.66,0.00010958,2]
[335873550,1724566244155,-721.59,0.00010958,2]
[335873551,1724566244164,-4125.81964262,0.00010958,2]
[335873552,1724566244184,-721.59,0.00010958,2]
[335873553,1724566244193,-721.59,0.00010958,2]
[335873554,1724566244203,-721.59,0.00010958,2]
[335873555,1724566244212,-721.59,0.00010958,2]
[335873556,1724566244226,-721.59,0.00010958,2]
[335873557,1724566244235,-721.59,0.00010958,2]
[335873558,1724566244245,-721.59,0.00010958,2]
[335873559,1724566244255,-721.59,0.00010958,2]
[335873560,1724566244267,-1212.4,0.00010958,2]
[335873561,1724566244276,-721.59,0.00010958,2]
[335873562,1724566244286,-1212.4,0.00010958,2]
[335873563,1724566244296,-721.59,0.00010958,2]
[335873564,1724566244306,-1212.4,0.00010958,2]
[335873565,1724566244316,-721.59,0.00010958,2]
[335873566,1724566244326,-1212.4,0.00010958,2]
[335873567,1724566244335,-1212.4,0.00010958,2]
[335873568,1724566244345,-721.59,0.00010958,2]
[335873569,1724566244358,-1212.4,0.00010958,2]
[335873570,1724566244368,-721.59,0.00010958,2]
[335873571,1724566244378,-1212.4,0.00010958,2]
[335873572,1724566244388,-721.59,0.00010958,2]
[335873573,1724566244397,-1212.4,0.00010958,2]
[335873574,1724566244406,-721.59,0.00010958,2]
[335873575,1724566244416,-1212.4,0.00010958,2]
[335873576,1724566244426,-721.59,0.00010958,2]
[335873577,1724566244435,-1212.4,0.00010958,2]
[335873578,1724566244444,-721.59,0.00010958,2]
[335873579,1724566244455,-1212.4,0.00010958,2]
[335873580,1724566244464,-721.59,0.00010958,2]
[335873581,1724566244474,-1212.4,0.00010958,2]
[335873582,1724566244483,-721.59,0.00010958,2]
[335873583,1724566244493,-1212.4,0.00010958,2]
[335873584,1724566244502,-721.59,0.00010958,2]
[335873585,1724566244512,-1212.4,0.00010958,2]
[335873586,1724566244522,-721.59,0.00010958,2]
[335873587,1724566244531,-1212.4,0.00010958,2]
[335873588,1724566244540,-1212.4,0.00010958,2]
[335873589,1724566244550,-1212.4,0.00010958,2]
[335873590,1724566244559,-1212.4,0.00010958,2]
[335873591,1724566244568,-1212.4,0.00010958,2]
[335873592,1724566244578,-1212.4,0.00010958,2]
[335873593,1724566244588,-1212.4,0.00010958,2]
[335873594,1724566244598,-1212.4,0.00010958,2]
[335873595,1724566244607,-1212.4,0.00010958,2]
[335873596,1724566244617,-1212.50319159,0.00010958,2]
[335873597,1724566244626,-671.95,0.00010958,2]
[335873598,1724566244636,-671.95,0.00010958,2]
[335873599,1724566244645,-671.95,0.00010958,2]
[335873600,1724566244655,-671.95,0.00010958,2]
[335873601,1724566244665,-671.95,0.00010958,2]
[335873602,1724566244675,-171.66,0.00010959,2]
[335873603,1724566244685,-157.07,0.00010959,2]
[335873604,1724566244695,-500.0,0.0001096,2]
[335873605,1724566244706,-500.0,0.0001096,2]
[335873606,1724566244716,-500.0,0.0001096,2]
[335873607,1724566244726,-500.90663452,0.00010973,2]
[335873608,1724566244737,-593.0,0.00010986,2]
[335873609,1724566244747,-2000.0,0.00010989,2]
[335873610,1724566244756,-200.0,0.00010989,2]
[335873611,1724566244766,-1239.79456,0.00010989,2]
[335873612,1724566244776,-8500.0,0.00010991,2]
[335873613,1724566244785,-2880.7250219,0.00010992,2]
[335873614,1724566244795,-3131.0642855,0.00010992,2]
[335873615,1724566244804,-3381.403549,0.00010992,2]
[335873616,1724566244814,-584.17304543,0.00010992,2]
[335873617,1724566244838,-3047.56976717,0.00010992,2]
[335873618,1724566244848,-3882.0820761,0.00010992,2]
[335873619,1724566244859,-758.1504938,0.00010992,2]
[335873620,1724566244869,-824.0348927,0.00010992,2]
[335873621,1724566244879,-889.9192915,0.00010992,2]
[335873622,1724566244988,-955.8036904,0.00010992,2]
[335873623,1724566244999,-1021.6880892,0.00010992,2]
[335873624,1724566245009,-298.7872688,0.00010992,2]
[335873625,1724566245019,-348.5975971,0.00010992,2]
[335873626,1724566245028,-398.4079253,0.00010992,2]
[335873627,1724566245039,-448.2182536,0.00010992,2]
[335873628,1724566245049,-498.0285818,0.00010992,2]
[335873629,1724566245059,-1741.68697479,0.00010993,2]
[335873630,1724566245068,-500.0,0.00010996,2]
[335873631,1724566245078,-500.0,0.00010996,2]
[335873632,1724566245088,-500.0,0.00010996,2]
[335873633,1724566245097,-500.0,0.00010996,2]
[335873634,1724566245107,-500.0,0.00010996,2]
[335873635,1724566245116,-500.0,0.00010996,2]
[335873636,1724566245126,-146.6843021,0.00010996,2]
[335873637,1724566245138,-266.28632185,0.00010996,2]
[335873638,1724566245155,-671.95,0.00010958,2]
[335873639,1724566245164,-87.02937605,0.00010996,2]
[335873640,1724566245174,-500.0,0.00010996,2]
[335873641,1724566245183,-500.0,0.00010996,2]
[335873642,1724566245193,-500.0,0.00010996,2]
[335873643,1724566245203,-500.0,0.00010996,2]
[335873644,1724566245213,-500.0,0.00010996,2]
[335873645,1724566245222,-500.0,0.00010996,2]
[335873646,1724566245231,-500.0,0.00010996,2]
[335873647,1724566245240,-500.0,0.00010996,2]
[335873648,1724566245250,-500.0,0.00010996,2]
[335873649,1724566245260,-500.0,0.00010996,2]
[335873650,1724566245269,-500.0,0.00010996,2]
[335873651,1724566245279,-500.0,0.00010996,2]
[335873652,1724566245288,-500.0,0.00010996,2]
[335873653,1724566245298,-500.0,0.00010996,2]
[335873654,1724566245307,-500.0,0.00010996,2]
[335873655,1724566245317,-500.0,0.00010996,2]
[335873656,1724566245326,-500.0,0.00010996,2]
[335873657,1724566245335,-500.0,0.00010996,2]
[335873658,1724566245344,-500.0,0.00010996,2]
[335873659,1724566245356,-500.0,0.00010996,2]
[335873660,1724566245365,-500.0,0.00010996,2]
[335873661,1724566245375,-500.0,0.00010996,2]
[335873662,1724566245384,-500.0,0.00010996,2]
[335873663,1724566245394,-500.0,0.00010996,2]
[335873664,1724566245403,-500.0,0.00010996,2]
[335873665,1724566245412,-500.0,0.00010996,2]
[335873666,1724566245421,-500.0,0.00010996,2]
[335873667,1724566245430,-500.0,0.00010996,2]
[335873668,1724566245440,-500.0,0.00010996,2]
[335873669,1724566245450,-608.77,0.00010996,2]
[335873670,1724566245459,-500.0,0.00010996,2]
[335873671,1724566245468,-500.0,0.00010996,2]
[335873672,1724566245477,-511.65951971,0.00010996,2]
[335873673,1724566245486,-500.0,0.00010996,2]
[335873674,1724566245495,-2080.9,0.00010996,2]
[335873675,1724566245504,-500.0,0.00010996,2]
[335873676,1724566245513,-782.98,0.00010996,2]
[335873677,1724566245522,-527.03,0.00010996,2]
[335873678,1724566245531,-1710.34,0.00010996,2]